[Event "Late-Titled-Tuesday-Blitz-May-28-2024"]
[Site "Chess.com"]
[Date "2024.05.28"]
[Round "6"]
[White "Mikhail_Bryakin"]
[Black "lachesisQ"]
[Result "0-1"]
[WhiteElo "2845"]
[BlackElo "3062"]
[TimeControl "180+1"]
[EndTime "15:06:29 PDT"]
[Termination "lachesisQ won by resignation"]

1. Nf3 {[%clk 0:02:54.7]} 1... Nf6 {[%clk 0:03:00.9]} 2. d4 {[%clk 0:02:53.1]}
2... g6 {[%clk 0:03:00.9]} 3. c4 {[%clk 0:02:51.7]} 3... Bg7 {[%clk 0:03:01.3]}
4. g3 {[%clk 0:02:51.2]} 4... O-O {[%clk 0:03:01.4]} 5. Nc3 {[%clk 0:02:51.4]}
5... d6 {[%clk 0:03:01.7]} 6. Bg2 {[%clk 0:02:51.2]} 6... Nc6 {[%clk 0:03:02.2]}
7. O-O {[%clk 0:02:49.9]} 7... a6 {[%clk 0:03:02.5]} 8. Bf4 {[%clk 0:02:49.5]}
8... Rb8 {[%clk 0:03:01.8]} 9. Rc1 {[%clk 0:02:48.5]} 9... Bd7 {[%clk
0:03:00.7]} 10. Nd5 {[%clk 0:02:33.9]} 10... Nxd5 {[%clk 0:02:34.3]} 11. cxd5
{[%clk 0:02:32.2]} 11... Na7 {[%clk 0:02:35.2]} 12. Qd2 {[%clk 0:02:06.9]} 12...
c6 {[%clk 0:02:34.7]} 13. dxc6 {[%clk 0:02:04.8]} 13... bxc6 {[%clk 0:02:28.6]}
14. b3 {[%clk 0:02:01.9]} 14... Qb6 {[%clk 0:02:25.8]} 15. Bh6 {[%clk
0:02:01.7]} 15... Nb5 {[%clk 0:02:22.6]} 16. Bxg7 {[%clk 0:02:00.4]} 16... Kxg7
{[%clk 0:02:23.5]} 17. h4 {[%clk 0:01:49.4]} 17... f6 {[%clk 0:02:17.7]} 18. e3
{[%clk 0:01:47.3]} 18... Nc7 {[%clk 0:02:15.4]} 19. Rc2 {[%clk 0:01:41]} 19...
Ne6 {[%clk 0:02:04.7]} 20. Rfc1 {[%clk 0:01:39.8]} 20... Rfc8 {[%clk 0:02:04.4]}
21. Ne1 {[%clk 0:01:32.3]} 21... Nd8 {[%clk 0:01:55.4]} 22. Nd3 {[%clk
0:01:31.4]} 22... a5 {[%clk 0:01:55.9]} 23. Kh2 {[%clk 0:01:08.1]} 23... Nf7
{[%clk 0:01:54.8]} 24. Nf4 {[%clk 0:01:04.4]} 24... e5 {[%clk 0:01:36.4]} 25.
Ne2 {[%clk 0:00:52.8]} 25... d5 {[%clk 0:01:33.1]} 26. Rc5 {[%clk 0:00:50.5]}
26... a4 {[%clk 0:01:27.7]} 27. bxa4 {[%clk 0:00:49.3]} 27... Nd6 {[%clk
0:01:27.6]} 28. Qc3 {[%clk 0:00:39.5]} 28... e4 {[%clk 0:01:14.9]} 29. Qc2
{[%clk 0:00:30.5]} 29... g5 {[%clk 0:01:07.1]} 30. a5 {[%clk 0:00:25.7]} 30...
Qa7 {[%clk 0:01:04.6]} 31. Nc3 {[%clk 0:00:21.6]} 31... gxh4 {[%clk 0:00:51.7]}
32. gxh4 {[%clk 0:00:21.9]} 32... Nb7 {[%clk 0:00:51.7]} 33. Na4 {[%clk
0:00:21.6]} 33... Nxc5 {[%clk 0:00:51.8]} 34. Nxc5 {[%clk 0:00:20.2]} 34... Bg4
{[%clk 0:00:51.3]} 35. a6 {[%clk 0:00:15.5]} 35... Kh8 {[%clk 0:00:50.6]} 36.
Rg1 {[%clk 0:00:09.4]} 36... Qc7+ {[%clk 0:00:49.3]} 37. Kh1 {[%clk 0:00:08.9]}
37... Rg8 {[%clk 0:00:50.2]} 38. Bf1 {[%clk 0:00:08.9]} 38... Bf3+ {[%clk
0:00:50]} 39. Bg2 {[%clk 0:00:07.1]} 39... Rxg2 {[%clk 0:00:49.7]} 40. Rxg2
{[%clk 0:00:07.7]} 40... Rg8 {[%clk 0:00:50.2]} 41. Ne6 {[%clk 0:00:06.9]} 41...
Bxg2+ {[%clk 0:00:49.9]} 42. Kg1 {[%clk 0:00:07.5]} 42... Bf3+ {[%clk
0:00:50.7]} 0-1

[Event "Late-Titled-Tuesday-Blitz-May-28-2024"]
[Site "Chess.com"]
[Date "2024.05.28"]
[Round "6"]
[White "PhileKhoob"]
[Black "marik_spb"]
[Result "0-1"]
[WhiteElo "2320"]
[BlackElo "2511"]
[TimeControl "180+1"]
[EndTime "15:06:30 PDT"]
[Termination "marik_spb won by resignation"]

1. Nf3 {[%clk 0:02:56.8]} 1... Nf6 {[%clk 0:02:51.8]} 2. g3 {[%clk 0:02:53.8]}
2... d5 {[%clk 0:02:52.7]} 3. Bg2 {[%clk 0:02:53.5]} 3... c5 {[%clk 0:02:53.3]}
4. O-O {[%clk 0:02:53.6]} 4... Nc6 {[%clk 0:02:53.6]} 5. d4 {[%clk 0:02:53.5]}
5... Bg4 {[%clk 0:02:51.3]} 6. Ne5 {[%clk 0:02:42.3]} 6... e6 {[%clk 0:02:49.4]}
7. Nxg4 {[%clk 0:02:18.9]} 7... Nxg4 {[%clk 0:02:50.3]} 8. c4 {[%clk 0:00:55.4]}
8... h5 {[%clk 0:02:12.8]} 9. cxd5 {[%clk 0:00:51.5]} 9... exd5 {[%clk
0:02:13.7]} 10. dxc5 {[%clk 0:00:33.5]} 10... Bxc5 {[%clk 0:02:14.6]} 11. e3
{[%clk 0:00:31.6]} 11... d4 {[%clk 0:02:11.4]} 12. exd4 {[%clk 0:00:27]} 12...
Qxd4 {[%clk 0:02:04.4]} 13. Qe2+ {[%clk 0:00:18]} 13... Kf8 {[%clk 0:02:03.9]}
14. h3 {[%clk 0:00:16.8]} 14... Re8 {[%clk 0:01:59.6]} 15. Qf3 {[%clk
0:00:11.3]} 15... Nxf2 {[%clk 0:00:43.7]} 16. Rxf2 {[%clk 0:00:10.6]} 16...
Qxf2+ {[%clk 0:00:39.3]} 17. Qxf2 {[%clk 0:00:10.8]} 17... Re1+ {[%clk
0:00:39.9]} 18. Bf1 {[%clk 0:00:10.9]} 18... Bxf2+ {[%clk 0:00:40.6]} 19. Kxf2
{[%clk 0:00:11.4]} 19... Rxc1 {[%clk 0:00:41.3]} 20. Bd3 {[%clk 0:00:08.1]}
20... Rh6 {[%clk 0:00:39.4]} 21. Ke2 {[%clk 0:00:06.4]} 21... Nb4 {[%clk
0:00:36.7]} 22. Bf5 {[%clk 0:00:01.8]} 22... Rd6 {[%clk 0:00:30.1]} 23. Be4
{[%clk 0:00:01.4]} 23... Nc2 {[%clk 0:00:27.2]} 24. Bxc2 {[%clk 0:00:01.1]}
24... Rxc2+ {[%clk 0:00:28.1]} 25. Ke3 {[%clk 0:00:01.3]} 25... Rc1 {[%clk
0:00:24.1]} 26. Ke2 {[%clk 0:00:01.5]} 26... Rdd1 {[%clk 0:00:22.9]} 27. a4
{[%clk 0:00:02.1]} 27... Rxb1 {[%clk 0:00:23.1]} 28. Ra3 {[%clk 0:00:03]} 28...
Rxb2+ {[%clk 0:00:23.3]} 0-1

[Event "Late-Titled-Tuesday-Blitz-May-28-2024"]
[Site "Chess.com"]
[Date "2024.05.28"]
[Round "6"]
[White "Chess_Star1234"]
[Black "cthake"]
[Result "1-0"]
[WhiteElo "2437"]
[BlackElo "1779"]
[TimeControl "180+1"]
[EndTime "15:06:33 PDT"]
[Termination "Chess_Star1234 won by checkmate"]

1. d4 {[%clk 0:03:00.9]} 1... Nf6 {[%clk 0:02:59]} 2. c4 {[%clk 0:02:58.9]} 2...
c5 {[%clk 0:02:57.9]} 3. d5 {[%clk 0:02:57]} 3... d6 {[%clk 0:02:53.9]} 4. Nc3
{[%clk 0:02:55.7]} 4... g6 {[%clk 0:02:53.7]} 5. e4 {[%clk 0:02:54.9]} 5... Bg7
{[%clk 0:02:53.5]} 6. f3 {[%clk 0:02:54.5]} 6... O-O {[%clk 0:02:52.7]} 7. Nge2
{[%clk 0:02:55]} 7... e6 {[%clk 0:02:51.6]} 8. Ng3 {[%clk 0:02:55.6]} 8... exd5
{[%clk 0:02:51.5]} 9. cxd5 {[%clk 0:02:56.5]} 9... a6 {[%clk 0:02:48.3]} 10. a4
{[%clk 0:02:55]} 10... Re8 {[%clk 0:02:46.5]} 11. Be2 {[%clk 0:02:55.1]} 11...
Nbd7 {[%clk 0:02:45]} 12. O-O {[%clk 0:02:54.8]} 12... h5 {[%clk 0:02:40.2]} 13.
Bf4 {[%clk 0:02:49.7]} 13... Ne5 {[%clk 0:02:38.5]} 14. Qd2 {[%clk 0:02:47]}
14... h4 {[%clk 0:02:33.5]} 15. Nh1 {[%clk 0:02:46.3]} 15... h3 {[%clk
0:02:27.3]} 16. g4 {[%clk 0:02:33.6]} 16... Bd7 {[%clk 0:02:02.6]} 17. Nf2
{[%clk 0:02:03.2]} 17... Rb8 {[%clk 0:01:59.5]} 18. a5 {[%clk 0:02:01]} 18... b5
{[%clk 0:01:58.9]} 19. axb6 {[%clk 0:02:01.9]} 19... Qxb6 {[%clk 0:01:58]} 20.
Rxa6 {[%clk 0:02:00]} 20... Qxb2 {[%clk 0:01:57.9]} 21. Qxb2 {[%clk 0:02:00.6]}
21... Rxb2 {[%clk 0:01:57.1]} 22. Rxd6 {[%clk 0:02:01.2]} 22... Nxf3+ {[%clk
0:01:50.3]} 23. Bxf3 {[%clk 0:01:59.1]} 23... Rb3 {[%clk 0:01:41.1]} 24. e5
{[%clk 0:01:33.9]} 24... Nh7 {[%clk 0:01:21.7]} 25. Rxd7 {[%clk 0:01:30.4]}
25... Rxc3 {[%clk 0:01:20.6]} 26. Nxh3 {[%clk 0:01:30.5]} 26... c4 {[%clk
0:01:12.1]} 27. Bg2 {[%clk 0:01:23.6]} 27... g5 {[%clk 0:01:07.7]} 28. Nxg5
{[%clk 0:01:22.8]} 28... Nxg5 {[%clk 0:01:05.6]} 29. Bxg5 {[%clk 0:01:23.7]}
29... Bxe5 {[%clk 0:01:03.1]} 30. Bf6 {[%clk 0:01:14.1]} 30... Bxf6 {[%clk
0:00:55]} 31. Rxf6 {[%clk 0:01:15]} 31... Rc1+ {[%clk 0:00:52.1]} 32. Kf2 {[%clk
0:01:14.4]} 32... Rc2+ {[%clk 0:00:45.8]} 33. Kg3 {[%clk 0:01:11.2]} 33... Re3+
{[%clk 0:00:45]} 34. Bf3 {[%clk 0:01:10]} 34... Rcc3 {[%clk 0:00:44.8]} 35.
Rfxf7 {[%clk 0:01:09.5]} 35... Rcd3 {[%clk 0:00:44.2]} 36. Rde7 {[%clk
0:00:51.5]} 36... c3 {[%clk 0:00:28.5]} 37. Rxe3 {[%clk 0:00:50.8]} 37... Rxe3
{[%clk 0:00:27.8]} 38. Rc7 {[%clk 0:00:51.5]} 38... Rd3 {[%clk 0:00:23.9]} 39.
d6 {[%clk 0:00:49.8]} 39... Rxd6 {[%clk 0:00:22.6]} 40. Rxc3 {[%clk 0:00:50.1]}
40... Kf7 {[%clk 0:00:21.2]} 41. h4 {[%clk 0:00:50.4]} 41... Kg6 {[%clk
0:00:21.3]} 42. g5 {[%clk 0:00:50.9]} 42... Kf5 {[%clk 0:00:21.2]} 43. Rc5+
{[%clk 0:00:50.6]} 43... Kg6 {[%clk 0:00:21.1]} 44. h5+ {[%clk 0:00:50.3]} 44...
Kg7 {[%clk 0:00:21.4]} 45. Kf4 {[%clk 0:00:50.9]} 45... Rd4+ {[%clk 0:00:20.5]}
46. Be4 {[%clk 0:00:51.4]} 46... Rd7 {[%clk 0:00:20.4]} 47. h6+ {[%clk
0:00:51.1]} 47... Kg8 {[%clk 0:00:20.3]} 48. Kf5 {[%clk 0:00:51.5]} 48... Rf7+
{[%clk 0:00:20.4]} 49. Kg6 {[%clk 0:00:51.2]} 49... Rf8 {[%clk 0:00:19.6]} 50.
Rc7 {[%clk 0:00:51.4]} 50... Re8 {[%clk 0:00:18.6]} 51. Bd5+ {[%clk 0:00:51.6]}
51... Kh8 {[%clk 0:00:17.7]} 52. Rh7# {[%clk 0:00:51.9]} 1-0

[Event "Late-Titled-Tuesday-Blitz-May-28-2024"]
[Site "Chess.com"]
[Date "2024.05.28"]
[Round "6"]
[White "howitzer14"]
[Black "Iuckyducky"]
[Result "1-0"]
[WhiteElo "3018"]
[BlackElo "2252"]
[TimeControl "180+1"]
[EndTime "15:06:34 PDT"]
[Termination "howitzer14 won by resignation"]

1. e4 {[%clk 0:02:55.2]} 1... c5 {[%clk 0:03:00.2]} 2. Nf3 {[%clk 0:02:54]} 2...
Nc6 {[%clk 0:03:00.7]} 3. Bb5 {[%clk 0:02:51]} 3... e5 {[%clk 0:03:00.5]} 4. c3
{[%clk 0:02:48.7]} 4... Bd6 {[%clk 0:02:54.8]} 5. d3 {[%clk 0:02:47.3]} 5... a6
{[%clk 0:02:46]} 6. Ba4 {[%clk 0:02:45.9]} 6... b5 {[%clk 0:02:43.3]} 7. Bc2
{[%clk 0:02:45]} 7... Bb7 {[%clk 0:02:32.6]} 8. a4 {[%clk 0:02:45.9]} 8... Bc7
{[%clk 0:02:31.6]} 9. O-O {[%clk 0:02:39.8]} 9... Nf6 {[%clk 0:02:28.4]} 10. Bg5
{[%clk 0:02:37.7]} 10... h6 {[%clk 0:02:27.9]} 11. Bh4 {[%clk 0:02:38.1]} 11...
g5 {[%clk 0:02:27.9]} 12. Bg3 {[%clk 0:02:37.9]} 12... Nh5 {[%clk 0:02:25.9]}
13. Nxe5 {[%clk 0:02:26.8]} 13... Nxg3 {[%clk 0:02:25.2]} 14. Nxc6 {[%clk
0:02:26.9]} 14... Bxc6 {[%clk 0:02:22.5]} 15. fxg3 {[%clk 0:02:21.6]} 15... Qe7
{[%clk 0:02:06.3]} 16. axb5 {[%clk 0:02:09.9]} 16... axb5 {[%clk 0:02:04.7]} 17.
Rxa8+ {[%clk 0:02:10.8]} 17... Bxa8 {[%clk 0:02:05.2]} 18. Qh5 {[%clk
0:02:00.6]} 18... Rh7 {[%clk 0:01:45.9]} 19. Nd2 {[%clk 0:01:54.3]} 19... Qe6
{[%clk 0:01:27.1]} 20. Kh1 {[%clk 0:01:46.6]} 20... Ke7 {[%clk 0:01:11.2]} 21.
Bb3 {[%clk 0:01:38.6]} 21... d5 {[%clk 0:01:04.6]} 22. exd5 {[%clk 0:01:32]}
22... Bxd5 {[%clk 0:01:04.9]} 23. Bxd5 {[%clk 0:01:31.4]} 23... Qxd5 {[%clk
0:01:05.2]} 24. Qe2+ {[%clk 0:01:29.6]} 24... Kf8 {[%clk 0:01:04.3]} 25. Ne4
{[%clk 0:01:28.3]} 25... Qe5 {[%clk 0:00:52.3]} 26. Qf3 {[%clk 0:01:23.3]} 26...
Bd8 {[%clk 0:00:41.7]} 27. g4 {[%clk 0:01:11.4]} 27... Rg7 {[%clk 0:00:27.4]}
28. h3 {[%clk 0:01:00.7]} 28... Bc7 {[%clk 0:00:24]} 29. g3 {[%clk 0:01:00.1]}
29... Qd5 {[%clk 0:00:10.5]} 30. Kg2 {[%clk 0:00:57.2]} 30... Rg6 {[%clk
0:00:07.1]} 31. Nf6 {[%clk 0:00:52.9]} 31... Qxf3+ {[%clk 0:00:06.6]} 32. Rxf3
{[%clk 0:00:53.8]} 32... Bd6 {[%clk 0:00:04.3]} 33. Rf5 {[%clk 0:00:51]} 33...
Be7 {[%clk 0:00:01.8]} 34. Nd7+ {[%clk 0:00:48.1]} 34... Kg7 {[%clk 0:00:02.3]}
35. Nxc5 {[%clk 0:00:48.7]} 35... Rc6 {[%clk 0:00:01]} 36. b4 {[%clk 0:00:46.5]}
36... Rc7 {[%clk 0:00:01]} 37. Kf3 {[%clk 0:00:39.6]} 37... Ra7 {[%clk
0:00:01.6]} 38. Ne4 {[%clk 0:00:40.1]} 38... Ra3 {[%clk 0:00:02]} 39. Rxb5
{[%clk 0:00:40.5]} 1-0

[Event "Late-Titled-Tuesday-Blitz-May-28-2024"]
[Site "Chess.com"]
[Date "2024.05.28"]
[Round "6"]
[White "Blitz"]
[Black "Pig-filth"]
[Result "0-1"]
[WhiteElo "2509"]
[BlackElo "2375"]
[TimeControl "180+1"]
[EndTime "15:06:35 PDT"]
[Termination "Pig-filth won by checkmate"]

1. d4 {[%clk 0:02:57.1]} 1... Nf6 {[%clk 0:03:00.9]} 2. Nc3 {[%clk 0:02:57.3]}
2... d5 {[%clk 0:03:00.2]} 3. Bf4 {[%clk 0:02:57.7]} 3... a6 {[%clk 0:02:54.1]}
4. e3 {[%clk 0:02:55.6]} 4... c5 {[%clk 0:02:54.1]} 5. dxc5 {[%clk 0:02:18.9]}
5... Nc6 {[%clk 0:02:52.4]} 6. Na4 {[%clk 0:02:05.1]} 6... e5 {[%clk 0:02:40.4]}
7. Bg5 {[%clk 0:02:01.5]} 7... Qa5+ {[%clk 0:02:35.8]} 8. c3 {[%clk 0:01:59.4]}
8... Ne4 {[%clk 0:02:32.6]} 9. Bh4 {[%clk 0:01:13.7]} 9... Nxc5 {[%clk
0:02:31.9]} 10. Nxc5 {[%clk 0:01:09.4]} 10... Qxc5 {[%clk 0:02:32.1]} 11. Nf3
{[%clk 0:01:08.7]} 11... Bd6 {[%clk 0:02:21.9]} 12. Rc1 {[%clk 0:01:00.6]} 12...
Bc7 {[%clk 0:02:18.3]} 13. Bg3 {[%clk 0:00:51.1]} 13... O-O {[%clk 0:02:07.1]}
14. Bd3 {[%clk 0:00:43.9]} 14... Qe7 {[%clk 0:01:59.5]} 15. Bb1 {[%clk
0:00:37.3]} 15... Be6 {[%clk 0:01:55.2]} 16. h4 {[%clk 0:00:32.1]} 16... e4
{[%clk 0:01:47.4]} 17. Bxc7 {[%clk 0:00:14.4]} 17... exf3 {[%clk 0:01:46.9]} 18.
Bg3 {[%clk 0:00:13.9]} 18... fxg2 {[%clk 0:01:38.5]} 19. Rg1 {[%clk 0:00:14.4]}
19... Bh3 {[%clk 0:01:17.9]} 20. h5 {[%clk 0:00:11.9]} 20... Rad8 {[%clk
0:01:10.1]} 21. h6 {[%clk 0:00:06.2]} 21... g6 {[%clk 0:01:04.2]} 22. Qf3 {[%clk
0:00:03.7]} 22... d4 {[%clk 0:00:59]} 23. Bf4 {[%clk 0:00:02.2]} 23... Qd7
{[%clk 0:00:49.4]} 24. cxd4 {[%clk 0:00:01.3]} 24... Nxd4 {[%clk 0:00:24.7]} 25.
exd4 {[%clk 0:00:02.2]} 25... Rfe8+ {[%clk 0:00:24.5]} 26. Be3 {[%clk
0:00:02.7]} 26... Qxd4 {[%clk 0:00:24.5]} 27. Bc2 {[%clk 0:00:01.7]} 27... Qd2#
{[%clk 0:00:18.4]} 0-1

[Event "Late-Titled-Tuesday-Blitz-May-28-2024"]
[Site "Chess.com"]
[Date "2024.05.28"]
[Round "6"]
[White "WilsonPalencia21"]
[Black "DonJuanEGenaro"]
[Result "1-0"]
[WhiteElo "2586"]
[BlackElo "2048"]
[TimeControl "180+1"]
[EndTime "15:06:36 PDT"]
[Termination "WilsonPalencia21 won on time"]

1. d4 {[%clk 0:03:00.9]} 1... d5 {[%clk 0:02:58.5]} 2. c4 {[%clk 0:03:00.9]}
2... e6 {[%clk 0:02:58.6]} 3. Nf3 {[%clk 0:03:01.6]} 3... c5 {[%clk 0:02:58.2]}
4. cxd5 {[%clk 0:03:01.2]} 4... exd5 {[%clk 0:02:57.3]} 5. Nc3 {[%clk
0:03:01.2]} 5... Nc6 {[%clk 0:02:57.3]} 6. Bg5 {[%clk 0:02:59.6]} 6... Be7
{[%clk 0:02:46.5]} 7. Bxe7 {[%clk 0:02:58]} 7... Ngxe7 {[%clk 0:02:46.1]} 8.
dxc5 {[%clk 0:02:57.8]} 8... d4 {[%clk 0:02:43]} 9. Ne4 {[%clk 0:02:54.1]} 9...
O-O {[%clk 0:02:30.5]} 10. a3 {[%clk 0:02:53.5]} 10... Bf5 {[%clk 0:02:15]} 11.
Nd6 {[%clk 0:02:44.3]} 11... Bg4 {[%clk 0:01:45.4]} 12. Nxd4 {[%clk 0:02:41.3]}
12... Qa5+ {[%clk 0:01:24.9]} 13. b4 {[%clk 0:02:39.3]} 13... Nxb4 {[%clk
0:01:24.5]} 14. axb4 {[%clk 0:02:39.2]} 14... Qxb4+ {[%clk 0:01:24.3]} 15. Qd2
{[%clk 0:02:39]} 15... Qxc5 {[%clk 0:01:24.1]} 16. Ne4 {[%clk 0:02:35.5]} 16...
Qe5 {[%clk 0:01:17.3]} 17. f3 {[%clk 0:02:34.3]} 17... Rfd8 {[%clk 0:01:14.4]}
18. e3 {[%clk 0:02:28.8]} 18... Bf5 {[%clk 0:01:09.5]} 19. Ng3 {[%clk
0:02:19.4]} 19... Bg6 {[%clk 0:01:06]} 20. Be2 {[%clk 0:02:13.5]} 20... Nd5
{[%clk 0:01:05.3]} 21. Kf2 {[%clk 0:02:11.2]} 21... Nxe3 {[%clk 0:01:00.2]} 22.
Qxe3 {[%clk 0:02:03.7]} 22... Qxd4 {[%clk 0:01:00]} 23. Qxd4 {[%clk 0:02:02.3]}
23... Rxd4 {[%clk 0:00:59.7]} 24. Rhc1 {[%clk 0:01:58.8]} 24... a5 {[%clk
0:00:54.8]} 25. Rxa5 {[%clk 0:01:39.8]} 25... Re8 {[%clk 0:00:49.5]} 26. Rac5
{[%clk 0:01:34.1]} 26... h5 {[%clk 0:00:46.3]} 27. Rc8 {[%clk 0:01:31.9]} 27...
Rxc8 {[%clk 0:00:41.4]} 28. Rxc8+ {[%clk 0:01:31]} 28... Kh7 {[%clk 0:00:41.7]}
29. Ke3 {[%clk 0:01:29.4]} 29... Rb4 {[%clk 0:00:40.1]} 30. Ne4 {[%clk
0:01:26.6]} 30... Bxe4 {[%clk 0:00:38.4]} 31. fxe4 {[%clk 0:01:26.1]} 31... Kg6
{[%clk 0:00:37]} 32. h4 {[%clk 0:01:24.4]} 32... b6 {[%clk 0:00:32.6]} 33. Rc6+
{[%clk 0:01:23]} 33... Kh7 {[%clk 0:00:30.5]} 34. Bxh5 {[%clk 0:01:21]} 34...
Rb3+ {[%clk 0:00:27.9]} 35. Kf4 {[%clk 0:01:19.3]} 35... g6 {[%clk 0:00:27.7]}
36. Bf3 {[%clk 0:01:18.8]} 36... b5 {[%clk 0:00:26.9]} 37. h5 {[%clk 0:01:15.4]}
37... gxh5 {[%clk 0:00:21.7]} 38. Bxh5 {[%clk 0:01:15.2]} 38... Rb2 {[%clk
0:00:11.9]} 39. Bf3 {[%clk 0:01:09.6]} 39... Kg7 {[%clk 0:00:09.3]} 40. Rb6
{[%clk 0:01:09.5]} 40... b4 {[%clk 0:00:08.7]} 41. e5 {[%clk 0:01:09.5]} 41...
b3 {[%clk 0:00:08.1]} 42. Rb7 {[%clk 0:01:09.6]} 42... Kf8 {[%clk 0:00:07.7]}
43. Bd5 {[%clk 0:01:06.2]} 43... Rf2+ {[%clk 0:00:07.1]} 44. Ke3 {[%clk
0:01:06]} 44... Rf5 {[%clk 0:00:01]} 45. Kd4 {[%clk 0:00:59]} 1-0

[Event "Late-Titled-Tuesday-Blitz-May-28-2024"]
[Site "Chess.com"]
[Date "2024.05.28"]
[Round "6"]
[White "GMthekingindian"]
[Black "JohnWhite1952"]
[Result "1-0"]
[WhiteElo "2341"]
[BlackElo "2027"]
[TimeControl "180+1"]
[EndTime "15:06:46 PDT"]
[Termination "GMthekingindian won on time"]

1. d4 {[%clk 0:02:35.3]} 1... Nf6 {[%clk 0:02:58]} 2. Nf3 {[%clk 0:02:34.9]}
2... g6 {[%clk 0:02:57]} 3. g3 {[%clk 0:02:34.9]} 3... Bg7 {[%clk 0:02:55.6]} 4.
Bg2 {[%clk 0:02:35.8]} 4... O-O {[%clk 0:02:52.5]} 5. O-O {[%clk 0:02:36.7]}
5... c5 {[%clk 0:02:50.6]} 6. dxc5 {[%clk 0:02:36.2]} 6... Qa5 {[%clk
0:02:43.7]} 7. Be3 {[%clk 0:02:33.4]} 7... Nc6 {[%clk 0:02:40.6]} 8. c3 {[%clk
0:02:28.6]} 8... Ng4 {[%clk 0:02:37.8]} 9. Bd4 {[%clk 0:02:13.4]} 9... e5 {[%clk
0:02:30.9]} 10. b4 {[%clk 0:02:13.4]} 10... Qc7 {[%clk 0:02:29]} 11. Be3 {[%clk
0:02:10.8]} 11... Nxe3 {[%clk 0:02:27.5]} 12. fxe3 {[%clk 0:02:11.7]} 12... a5
{[%clk 0:02:20.2]} 13. Qb3 {[%clk 0:01:26.2]} 13... axb4 {[%clk 0:02:13.2]} 14.
Rd1 {[%clk 0:01:02.7]} 14... bxc3 {[%clk 0:02:07.3]} 15. Nxc3 {[%clk 0:01:02.8]}
15... Na5 {[%clk 0:01:46.8]} 16. Qb4 {[%clk 0:00:56.7]} 16... Nc6 {[%clk
0:01:31.3]} 17. Qc4 {[%clk 0:00:56.9]} 17... b6 {[%clk 0:01:23.1]} 18. Nd5
{[%clk 0:00:56.6]} 18... Qd8 {[%clk 0:01:06.5]} 19. cxb6 {[%clk 0:00:47.7]}
19... Ba6 {[%clk 0:01:03.1]} 20. Qc5 {[%clk 0:00:42.9]} 20... Bxe2 {[%clk
0:00:56.1]} 21. Rd2 {[%clk 0:00:43.2]} 21... Ba6 {[%clk 0:00:50.8]} 22. Rad1
{[%clk 0:00:41.9]} 22... Re8 {[%clk 0:00:42]} 23. Nc7 {[%clk 0:00:41.1]} 23...
Bf8 {[%clk 0:00:20.1]} 24. Qd5 {[%clk 0:00:19.9]} 24... Bb7 {[%clk 0:00:16]} 25.
Nxa8 {[%clk 0:00:19.5]} 25... Bxa8 {[%clk 0:00:14.7]} 26. Qb5 {[%clk 0:00:17.7]}
26... Be7 {[%clk 0:00:08]} 27. Rxd7 {[%clk 0:00:17.4]} 27... Qc8 {[%clk
0:00:04.6]} 28. b7 {[%clk 0:00:17.3]} 28... Bxb7 {[%clk 0:00:02.8]} 29. Qxb7
{[%clk 0:00:17.5]} 29... Qxb7 {[%clk 0:00:01.2]} 30. Rxb7 {[%clk 0:00:18.4]} 1-0